fUST/lending_fUST_20260228
["ID","MTS","AMOUNT","RATE_DAILY","PERIOD"]
[406897969,1772267528753,-609.45,0.00016986,2]
[406897970,1772267528762,-787.95,0.00016986,2]
[406897971,1772267528776,-1665.88,0.00016986,2]
[406897972,1772267528786,-571.43,0.00016986,2]
[406897973,1772267528795,-500.0,0.00016986,2]
[406897974,1772267528805,-7573.22,0.00016986,2]
[406897975,1772267528814,-554.61,0.00016986,2]
[406897976,1772267528824,-500.0,0.00016986,2]
[406897977,1772267528833,-500.0,0.00016986,2]
[406897978,1772267528843,-500.0,0.00016986,2]
[406897979,1772267528853,-1743.64,0.00016986,2]
[406897980,1772267528862,-2006.98,0.00016986,2]
[406897981,1772267528872,-647.16,0.00016986,2]
[406897982,1772267528882,-2108.79,0.00016986,2]
[406897983,1772267528891,-839.36,0.00016986,2]
[406897984,1772267528900,-878.12,0.00016986,2]
[406897985,1772267528910,-7180.71,0.00016986,2]
[406897986,1772267528919,-784.54,0.00016986,2]
[406897987,1772267528928,-696.62,0.00016986,2]
[406897988,1772267528937,-854.66,0.00016986,2]
[406897989,1772267528947,-1726.59,0.00016986,2]
[406897990,1772267528956,-500.0,0.00016986,2]
[406897991,1772267528966,-1075.35,0.00016986,2]
[406897992,1772267528975,-5780.22,0.00016986,2]
[406897993,1772267528985,-1052.35,0.00016986,2]
[406897994,1772267528995,-1604.1,0.00016986,2]
[406897995,1772267529004,-617.93,0.00016986,2]
[406897996,1772267529013,-1438.35,0.00016986,2]
[406897997,1772267529026,-183.22812576,0.00016986,2]
[406897998,1772267529036,-1671.97,0.00016986,2]
[406897999,1772267529046,-338.10666867,0.00016986,2]
[406898000,1772267529056,-313.88182061,0.00016986,2]
[406898001,1772267529065,-566.35,0.00016986,2]
[406898002,1772267529075,-695.06,0.00016986,2]
[406898003,1772267529084,-692.56,0.00016986,2]
[406898004,1772267529093,-1703.31,0.00016986,2]
[406898005,1772267529102,-1091.8,0.00016986,2]
[406898006,1772267529112,-526.21,0.00016986,2]
[406898007,1772267529121,-1946.78,0.00016986,2]
[406898008,1772267529131,-1093.05,0.00016986,2]
[406898009,1772267529140,-522.9,0.00016986,2]
[406898010,1772267529151,-1010.99,0.00016986,2]
[406898011,1772267529161,-597.64,0.00016986,2]
[406898012,1772267529170,-632.06,0.00016986,2]
[406898013,1772267529181,-1404.24,0.00016986,2]
[406898014,1772267529190,-3447.77,0.00016986,2]
[406898015,1772267529200,-309.67313256,0.00016986,2]
[406898016,1772267529209,-592.02,0.00016986,2]
[406898017,1772267529220,-500.0,0.00016986,2]
[406898018,1772267529230,-500.0,0.00016986,2]
[406898019,1772267529240,-1639.95,0.00016986,2]
[406898020,1772267529250,-500.0,0.00016986,2]
[406898021,1772267529260,-766.57,0.00016986,2]
[406898022,1772267529271,-2199.16,0.00016986,2]
[406898023,1772267529281,-515.11,0.00016986,2]
[406898024,1772267529291,-1033.14,0.00016986,2]
[406898025,1772267529300,-1309.19,0.00016986,2]
[406898026,1772267529310,-1688.18,0.00016986,2]
[406898027,1772267529319,-3009.71,0.00016986,2]
[406898028,1772267529328,-1567.57,0.00016986,2]
[406898029,1772267529338,-500.0,0.00016986,2]
[406898030,1772267529347,-1039.64,0.00016986,2]
[406898031,1772267529357,-500.0,0.00016986,2]
[406898032,1772267529366,-578.85,0.00016986,2]
[406898033,1772267529375,-500.0,0.00016986,2]
[406898034,1772267529386,-2382.93,0.00016986,2]
[406898035,1772267529395,-2151.2,0.00016986,2]
[406898036,1772267529405,-1096.15,0.00016986,2]
[406898037,1772267529414,-683.72,0.00016986,2]
[406898038,1772267529424,-832.49,0.00016986,2]
[406898039,1772267529434,-692.6,0.00016986,2]
[406898040,1772267529444,-500.0,0.00016986,2]
[406898041,1772267529454,-3399.35,0.00016986,2]
[406898042,1772267529463,-865.62,0.00016986,2]
[406898043,1772267529473,-929.25,0.00016986,2]
[406898044,1772267529483,-856.18,0.00016986,2]
[406898045,1772267529493,-1271.22,0.00016986,2]
[406898046,1772267529502,-1063.54,0.00016986,2]
[406898047,1772267529512,-1318.72,0.00016986,2]
[406898048,1772267529523,-705.79,0.00016986,2]
[406898049,1772267529534,-2424.89,0.00016986,2]
[406898050,1772267529543,-1446.29,0.00016986,2]
[406898051,1772267529552,-500.0,0.00016986,2]
[406898052,1772267529562,-2361.52,0.00016986,2]
[406898053,1772267529571,-500.0,0.00016986,2]
[406898054,1772267529581,-4592.95,0.00016986,2]
[406898055,1772267529591,-2215.2,0.00016986,2]
[406898056,1772267529601,-1435.8,0.00016986,2]
[406898057,1772267529610,-1576.84,0.00016986,2]
[406898058,1772267529620,-2561.33,0.00016986,2]
[406898059,1772267529630,-1085.51,0.00016986,2]
[406898060,1772267529640,-500.0,0.00016986,2]
[406898061,1772267529650,-586.91104911,0.00016986,2]
[406898062,1772267529659,-717.42,0.00016986,2]
[406898063,1772267529669,-1108.2,0.00016986,2]
[406898064,1772267529679,-500.0,0.00016986,2]
[406898065,1772267529689,-3100.42,0.00016986,2]
[406898066,1772267529698,-1341.93,0.00016986,2]
[406898067,1772267529708,-1305.67,0.00016986,2]
[406898068,1772267529718,-500.0,0.00016986,2]
[406898069,1772267529727,-1472.57,0.00016986,2]
[406898070,1772267529737,-561.98,0.00016986,2]
[406898071,1772267529747,-3197.66,0.00016986,2]
[406898072,1772267529757,-615.34,0.00016986,2]
[406898073,1772267529766,-699.96,0.00016986,2]
[406898074,1772267529778,-500.0,0.00016986,2]
[406898075,1772267529787,-1020.13,0.00016986,2]
[406898076,1772267529797,-500.0,0.00016986,2]
[406898077,1772267529807,-596.63,0.00016986,2]
[406898078,1772267529817,-500.0,0.00016986,2]
[406898079,1772267529827,-1033.36,0.00016986,2]
[406898080,1772267529836,-500.0,0.00016986,2]
[406898081,1772267529846,-500.0,0.00016986,2]
[406898082,1772267529856,-2312.35,0.00016986,2]
[406898083,1772267529865,-955.01,0.00016986,2]
[406898084,1772267529875,-806.51,0.00016986,2]
[406898085,1772267529885,-1522.66,0.00016986,2]
[406898086,1772267529894,-500.0,0.00016986,2]
[406898087,1772267529904,-867.0,0.00016986,2]
[406898088,1772267529914,-7146.16,0.00016986,2]
[406898089,1772267529924,-500.0,0.00016986,2]
[406898090,1772267529934,-500.0,0.00016986,2]
[406898091,1772267529943,-1028.35,0.00016986,2]
[406898092,1772267529952,-500.0,0.00016986,2]
[406898093,1772267529962,-1008.96,0.00016986,2]
[406898094,1772267529971,-1352.59,0.00016986,2]
[406898095,1772267529981,-506.03,0.00016986,2]
[406898096,1772267529991,-500.0,0.00016986,2]
[406898097,1772267530001,-500.0,0.00016986,2]
[406898098,1772267530011,-500.0,0.00016986,2]
[406898099,1772267530022,-764.41,0.00016986,2]
[406898100,1772267530031,-500.0,0.00016986,2]
[406898101,1772267530040,-1761.81,0.00016986,2]
[406898102,1772267530050,-2215.04,0.00016986,2]
[406898103,1772267530059,-517.41,0.00016986,2]
[406898104,1772267530069,-517.59,0.00016986,2]
[406898105,1772267530078,-500.0,0.00016986,2]
[406898106,1772267530088,-500.0,0.00016986,2]
[406898107,1772267530098,-963.32,0.00016986,2]
[406898108,1772267530109,-700.0,0.00016986,2]
[406898109,1772267530118,-899.12,0.00016986,2]
[406898110,1772267530127,-1300.35,0.00016986,2]
[406898111,1772267530142,-5319.48,0.00016986,2]
[406898112,1772267530152,-1252.77,0.00016986,2]
[406898113,1772267530162,-587.74,0.00016986,2]
[406898114,1772267530172,-1166.63,0.00016986,2]
[406898115,1772267530183,-899.07,0.00016986,2]
[406898116,1772267530192,-2895.24,0.00016986,2]
[406898117,1772267530202,-1068.48,0.00016986,2]
[406898118,1772267530212,-968.49,0.00016986,2]
[406898119,1772267530222,-500.0,0.00016986,2]
[406898120,1772267530233,-2416.57,0.00016986,2]
[406898121,1772267530243,-1587.58,0.00016986,2]
[406898122,1772267530253,-647.96,0.00016986,2]
[406898123,1772267530263,-8070.28,0.00016986,2]
[406898124,1772267530275,-731.15,0.00016986,2]
[406898125,1772267530284,-500.0,0.00016986,2]
[406898126,1772267530296,-500.0,0.00016986,2]
[406898127,1772267530305,-1997.06,0.00016986,2]
[406898128,1772267530314,-3186.98,0.00016986,2]
[406898129,1772267530324,-3896.0,0.00016986,2]
[406898130,1772267530333,-500.0,0.00016986,2]
[406898131,1772267530342,-527.94,0.00016986,2]
[406898132,1772267530352,-989.6,0.00016986,2]
[406898133,1772267530362,-588.09054106,0.00016986,2]
[406898134,1772267530372,-7025.66,0.00016986,2]
[406898135,1772267530381,-500.0,0.00016986,2]
[406898136,1772267530392,-682.38,0.00016986,2]
[406898137,1772267530403,-659.28,0.00016986,2]
[406898138,1772267530413,-728.78,0.00016986,2]
[406898139,1772267530423,-898.93,0.00016986,2]
[406898140,1772267530432,-793.11,0.00016986,2]
[406898141,1772267530442,-1706.3,0.00016986,2]
[406898142,1772267530451,-659.85,0.00016986,2]
[406898143,1772267530461,-1134.79,0.00016986,2]
[406898144,1772267530471,-11125.25,0.00016986,2]
[406898145,1772267530481,-7153.51,0.00016986,2]
[406898146,1772267530491,-648.35,0.00016986,2]
[406898147,1772267530500,-5078.3,0.00016986,2]
[406898148,1772267530509,-683.43,0.00016986,2]
[406898149,1772267530524,-2723.16,0.00016986,2]
[406898150,1772267530534,-500.0,0.00016986,2]
[406898151,1772267530544,-4724.28,0.00016986,2]
[406898152,1772267530553,-500.0,0.00016986,2]
[406898153,1772267530563,-739.63,0.00016986,2]
[406898154,1772267530572,-500.0,0.00016986,2]
[406898155,1772267530582,-500.0,0.00016986,2]
[406898156,1772267530725,-4297.64,0.00016986,2]
[406898157,1772267530737,-500.0,0.00016986,2]
[406898158,1772267530747,-737.38,0.00016986,2]
[406898159,1772267530757,-2549.64,0.00016986,2]
[406898160,1772267530767,-1171.08,0.00016986,2]
[406898161,1772267530779,-2640.18,0.00016986,2]
[406898162,1772267530789,-7472.22,0.00016986,2]
[406898163,1772267530799,-500.0,0.00016986,2]
[406898164,1772267530810,-530.37,0.00016986,2]
[406898165,1772267530819,-1765.65,0.00016986,2]
[406898166,1772267530829,-500.0,0.00016986,2]
[406898167,1772267530838,-500.0,0.00016986,2]
[406898168,1772267530848,-1444.95,0.00016986,2]
[406898169,1772267530858,-4088.91,0.00016986,2]
[406898170,1772267530868,-2445.15,0.00016986,2]
[406898171,1772267530878,-2774.65,0.00016986,2]
[406898172,1772267530888,-3783.55,0.00016986,2]
[406898173,1772267530898,-1333.68,0.00016986,2]
[406898174,1772267530907,-336.58618571,0.00016986,2]
[406898175,1772267530917,-14153.91,0.00016986,2]
[406898176,1772267530927,-500.0,0.00016986,2]
[406898177,1772267530936,-3218.57,0.00016986,2]
[406898178,1772267530945,-2092.55,0.00016986,2]
[406898179,1772267530954,-2893.22,0.00016986,2]
[406898180,1772267530964,-2259.28,0.00016986,2]
[406898181,1772267530973,-1798.11,0.00016986,2]
[406898182,1772267530983,-540.91,0.00016986,2]
[406898183,1772267530993,-500.0,0.00016986,2]
[406898184,1772267531002,-500.0,0.00016986,2]
[406898185,1772267531013,-16752.77,0.00016986,2]
[406898186,1772267531023,-500.97,0.00016986,2]
[406898187,1772267531033,-526.47,0.00016986,2]
[406898188,1772267531043,-1638.09,0.00016986,2]
[406898189,1772267531052,-4470.34,0.00016986,2]
[406898190,1772267531062,-2160.15,0.00016986,2]
[406898191,1772267531071,-500.0,0.00016986,2]
[406898192,1772267531080,-611.61,0.00016986,2]
[406898193,1772267531089,-500.0,0.00016986,2]
[406898194,1772267531099,-587.54,0.00016986,2]
[406898195,1772267531108,-679.97,0.00016986,2]
[406898196,1772267531118,-500.0,0.00016986,2]
[406898197,1772267531128,-62454.68,0.00016986,2]
[406898198,1772267531138,-4931.54,0.00016986,2]
[406898199,1772267531148,-691.25,0.00016986,2]
[406898200,1772267531159,-2603.07,0.00016986,2]
[406898201,1772267531169,-7026.09,0.00016986,2]
[406898202,1772267531178,-668.0,0.00016986,2]
[406898203,1772267531188,-1193.68,0.00016986,2]
[406898204,1772267531199,-635.83,0.00016986,2]
[406898205,1772267531209,-500.0,0.00016986,2]
[406898206,1772267531218,-638.25511625,0.00016986,2]
[406898207,1772267531230,-1018.54,0.00016986,2]
[406898208,1772267531239,-8795.12,0.00016986,2]
[406898209,1772267531249,-500.0,0.00016986,2]
[406898210,1772267531259,-511.19,0.00016986,2]
[406898211,1772267531273,-500.0,0.00016986,2]
[406898212,1772267531283,-2059.67,0.00016986,2]
[406898213,1772267531294,-2791.04,0.00016986,2]
[406898214,1772267531303,-500.0,0.00016986,2]
[406898215,1772267531312,-4120.89,0.00016986,2]
[406898216,1772267531322,-738.7,0.00016986,2]
[406898217,1772267531331,-500.0,0.00016986,2]
[406898218,1772267531340,-858.19,0.00016986,2]
[406898219,1772267531350,-1094.77,0.00016986,2]
[406898220,1772267531359,-1558.46,0.00016986,2]
[406898221,1772267531369,-3104.3,0.00016986,2]
[406898222,1772267531379,-500.0,0.00016986,2]
[406898223,1772267531389,-41294.65,0.00016986,2]
[406898224,1772267531398,-500.0,0.00016986,2]
[406898225,1772267531408,-4305.9,0.00016986,2]
[406898226,1772267531418,-1079.08,0.00016986,2]
[406898227,1772267531428,-1590.25,0.00016986,2]
[406898228,1772267531437,-829.59,0.00016986,2]
[406898229,1772267531447,-17553.64,0.00016986,2]
[406898230,1772267531456,-836.94,0.00016986,2]
[406898231,1772267531466,-2501.06,0.00016986,2]
[406898232,1772267531476,-624.89,0.00016986,2]
[406898233,1772267531486,-500.0,0.00016986,2]
[406898234,1772267531496,-500.0,0.00016986,2]
[406898235,1772267531506,-587.66,0.00016986,2]
[406898236,1772267531516,-612.52,0.00016986,2]
[406898237,1772267531530,-798.52,0.00016986,2]
[406898238,1772267531540,-920.96,0.00016986,2]
[406898239,1772267531551,-833.23,0.00016986,2]
[406898240,1772267531562,-502.1,0.00016986,2]
[406898241,1772267531572,-1661.19,0.00016986,2]
[406898242,1772267531581,-884.15,0.00016986,2]
[406898243,1772267531591,-997.87,0.00016986,2]
[406898244,1772267531601,-714.12,0.00016986,2]
[406898245,1772267531611,-2806.98,0.00016986,2]
[406898246,1772267531621,-3389.85,0.00016986,2]
[406898247,1772267531631,-500.0,0.00016986,2]
[406898248,1772267531640,-500.0,0.00016986,2]
[406898249,1772267531650,-736.98,0.00016986,2]
[406898250,1772267531659,-3040.54,0.00016986,2]
[406898251,1772267531669,-620.21307881,0.00016986,2]
[406898252,1772267531679,-1624.77,0.00016986,2]
[406898253,1772267531688,-8862.41,0.00016986,2]
[406898254,1772267531698,-21682.96,0.00016986,2]
[406898255,1772267531707,-1097.26,0.00016986,2]
[406898256,1772267531717,-500.0,0.00016986,2]
[406898257,1772267531727,-7502.8,0.00016986,2]
[406898258,1772267531737,-290.69429175,0.00016986,2]
[406898259,1772267531746,-565.02,0.00016986,2]
[406898260,1772267531756,-6625.37,0.00016986,2]
[406898261,1772267531766,-495.32088144,0.00016986,2]
[406898262,1772267531777,-2462.23,0.00016986,2]
[406898263,1772267531788,-1430.4,0.00016986,2]
[406898264,1772267531798,-1591.21,0.00016986,2]
[406898265,1772267531809,-1097.85,0.00016986,2]
[406898266,1772267531819,-941.74,0.00016986,2]
[406898267,1772267531829,-2991.59,0.00016986,2]
[406898268,1772267531838,-1208.52,0.00016986,2]
[406898269,1772267531847,-1852.72,0.00016986,2]
[406898270,1772267531857,-500.0,0.00016986,2]
[406898271,1772267531867,-2739.1,0.00016986,2]
[406898272,1772267531876,-500.0,0.00016986,2]
[406898273,1772267531886,-3806.49,0.00016986,2]
[406898274,1772267531896,-7703.07,0.00016986,2]
[406898275,1772267531905,-515.24,0.00016986,2]
[406898276,1772267531915,-500.0,0.00016986,2]
[406898277,1772267531924,-1269.75,0.00016986,2]
[406898278,1772267531934,-2065.59,0.00016986,2]
[406898279,1772267531943,-500.0,0.00016986,2]
[406898280,1772267531952,-1723.78,0.00016986,2]
[406898281,1772267531963,-2115.78,0.00016986,2]
[406898282,1772267531973,-459.21806031,0.00016986,2]
[406898283,1772267531983,-1897.54,0.00016986,2]
[406898284,1772267531993,-3092.48,0.00016986,2]
[406898285,1772267532003,-500.0,0.00016986,2]
[406898286,1772267532014,-922.16,0.00016986,2]
[406898287,1772267532029,-1034.45,0.00016986,2]
[406898288,1772267532039,-4771.37,0.00016986,2]
[406898289,1772267532049,-500.0,0.00016986,2]
[406898290,1772267532059,-1231.85,0.00016986,2]
[406898291,1772267532069,-250.0,0.00016986,2]
[406898292,1772267532079,-1443.02920167,0.00016989,2]
[406898293,1772267532088,-500.0,0.00017,2]
[406898294,1772267532098,-403.0,0.0001704,2]
[406898295,1772267532108,-403.0,0.0001704,2]
[406898296,1772267532118,-939.8342441,0.00017125,13]
[406898297,1772267532129,-637.0,0.00017139,2]
[406898298,1772267532146,-2183.0,0.00017139,2]
[406898299,1772267532156,-1387.0,0.00017139,2]
[406898300,1772267532167,-729.0,0.00017139,2]
[406898301,1772267532177,-205.813,0.00017139,2]
[406898302,1772267532188,-431.0,0.00017139,2]
[406898303,1772267532198,-324.3,0.0001726,2]
[406898304,1772267532207,-607.58,0.0001726,2]
[406898305,1772267532217,-500.0,0.0001726,2]
[406898306,1772267532228,-980.59,0.0001726,2]
[406898307,1772267532237,-500.0,0.0001726,2]
[406898308,1772267532247,-500.0,0.0001726,2]
[406898309,1772267532256,-500.0,0.0001726,2]
[406898310,1772267532266,-1353.85,0.0001726,2]
[406898311,1772267532279,-1322.07,0.0001726,2]
[406898312,1772267532289,-692.0,0.0001726,2]
[406898313,1772267532298,-564.22,0.0001726,2]
[406898314,1772267532311,-520.93,0.0001726,2]
[406898315,1772267532327,-500.0,0.0001726,2]
[406898316,1772267532338,-500.0,0.0001726,2]
[406898317,1772267532348,-500.0,0.0001726,2]
[406898318,1772267532357,-1711.44,0.0001726,2]
[406898319,1772267532367,-2726.35,0.0001726,2]
[406898320,1772267532376,-500.0,0.0001726,2]
[406898321,1772267532386,-1744.45,0.0001726,2]
[406898322,1772267532396,-500.0,0.0001726,2]
[406898323,1772267532406,-1041.8,0.0001726,2]
[406898324,1772267532416,-737.4,0.0001726,2]
[406898325,1772267532435,-2718.46,0.0001726,2]
[406898326,1772267532444,-770.65,0.0001726,2]
[406898327,1772267532454,-902.4,0.0001726,2]
[406898328,1772267532464,-989.47,0.0001726,2]
[406898329,1772267532474,-558.27,0.0001726,2]
[406898330,1772267532484,-603.96,0.0001726,2]
[406898331,1772267532494,-500.58,0.0001726,2]
[406898332,1772267532504,-2062.12,0.0001726,2]
[406898333,1772267532514,-719.5,0.0001726,2]
[406898334,1772267532528,-525.56,0.0001726,2]
[406898335,1772267532538,-500.0,0.0001726,2]
[406898336,1772267532548,-590.2,0.0001726,2]
[406898337,1772267532559,-546.89,0.0001726,2]
[406898338,1772267532568,-1727.31,0.0001726,2]
[406898339,1772267532578,-514.02,0.0001726,2]
[406898340,1772267532587,-860.84,0.0001726,2]
[406898341,1772267532597,-955.26,0.0001726,2]
[406898342,1772267532607,-500.0,0.0001726,2]
[406898343,1772267532617,-725.73,0.0001726,2]
[406898344,1772267532627,-914.38,0.0001726,2]
[406898345,1772267532637,-1116.21,0.0001726,2]
[406898346,1772267532646,-579.95,0.0001726,2]
[406898347,1772267532656,-500.0,0.0001726,2]
[406898348,1772267532666,-1326.22,0.0001726,2]
[406898349,1772267532675,-1036.26,0.0001726,2]
[406898350,1772267532686,-257.83321704,0.0001726,2]
[406898351,1772267532696,-936.85,0.0001726,2]
[406898352,1772267532706,-500.0,0.0001726,2]
[406898353,1772267532715,-547.18,0.0001726,2]
[406898354,1772267532725,-1250.68,0.0001726,2]
[406898355,1772267532735,-1196.3,0.0001726,2]
[406898356,1772267532745,-1024.08,0.0001726,2]
[406898357,1772267532755,-898.6,0.0001726,2]
[406898358,1772267532764,-500.0,0.0001726,2]
[406898359,1772267532776,-500.0,0.0001726,2]
[406898360,1772267532785,-609.4,0.0001726,2]
[406898361,1772267532795,-388.84,0.0001726,2]
[406898362,1772267532804,-1312.05,0.0001726,2]
[406898363,1772267532814,-937.86,0.0001726,2]
[406898364,1772267532824,-651.8,0.0001726,2]
[406898365,1772267532834,-500.0,0.0001726,2]
[406898366,1772267532963,-500.0,0.0001726,2]
[406898367,1772267532985,-500.0,0.0001726,2]
[406898368,1772267532994,-517.11,0.0001726,2]
[406898369,1772267533004,-500.0,0.0001726,2]
[406898370,1772267533014,-317.81790473,0.0001726,2]
[406898371,1772267533025,-500.0,0.0001726,2]
[406898372,1772267533035,-1446.65,0.0001726,2]
[406898373,1772267533044,-500.0,0.0001726,2]
[406898374,1772267533053,-1733.53,0.0001726,2]
[406898375,1772267533063,-1436.12,0.0001726,2]
[406898376,1772267533072,-685.31,0.0001726,2]
[406898377,1772267533083,-580.66,0.0001726,2]
[406898378,1772267533093,-571.4,0.0001726,2]
[406898379,1772267533102,-864.92,0.0001726,2]
[406898380,1772267533112,-846.6,0.0001726,2]
[406898381,1772267533121,-1593.78,0.0001726,2]
[406898382,1772267533131,-750.44,0.0001726,2]
[406898383,1772267533144,-500.0,0.0001726,2]
[406898384,1772267533154,-1521.42,0.0001726,2]
[406898385,1772267533164,-1247.19,0.0001726,2]
[406898386,1772267533174,-705.82,0.0001726,2]
[406898387,1772267533185,-500.0,0.0001726,2]
[406898388,1772267533195,-529.62,0.0001726,2]
[406898389,1772267533204,-500.0,0.0001726,2]
[406898390,1772267533214,-745.32,0.0001726,2]
[406898391,1772267533224,-1605.01,0.0001726,2]
[406898392,1772267533234,-500.0,0.0001726,2]
[406898393,1772267533243,-1610.8,0.0001726,2]
[406898394,1772267533254,-288.12134545,0.0001726,2]
[406898395,1772267533264,-1001.72,0.0001726,2]
[406898396,1772267533278,-627.88,0.0001726,2]
[406898397,1772267533288,-1059.56,0.0001726,2]
[406898398,1772267533298,-500.0,0.0001726,2]
[406898399,1772267533308,-917.08,0.0001726,2]
[406898400,1772267533318,-500.0,0.0001726,2]
[406898401,1772267533328,-529.27,0.0001726,2]
[406898402,1772267533338,-927.57,0.0001726,2]
[406898403,1772267533348,-650.87,0.0001726,2]
[406898404,1772267533358,-661.99,0.0001726,2]
[406898405,1772267533368,-500.0,0.0001726,2]
[406898406,1772267533378,-1219.63,0.0001726,2]
[406898407,1772267533389,-500.0,0.0001726,2]
[406898408,1772267533399,-818.16,0.0001726,2]
[406898409,1772267533410,-564.11,0.0001726,2]
[406898410,1772267533419,-500.0,0.0001726,2]
[406898411,1772267533430,-500.0,0.0001726,2]
[406898412,1772267533440,-500.0,0.0001726,2]
[406898413,1772267533450,-773.68,0.0001726,2]
[406898414,1772267533460,-500.0,0.0001726,2]
[406898415,1772267533470,-1058.67,0.0001726,2]
[406898416,1772267533480,-544.13,0.0001726,2]
[406898417,1772267533490,-500.0,0.0001726,2]
[406898418,1772267533500,-1354.43,0.0001726,2]
[406898419,1772267533511,-500.0,0.0001726,2]
[406898420,1772267533521,-500.0,0.0001726,2]
[406898421,1772267533533,-947.35,0.0001726,2]
[406898422,1772267533543,-239.20423254,0.0001726,2]
[406898423,1772267533553,-577.2,0.0001726,2]
[406898424,1772267533563,-617.88,0.0001726,2]
[406898425,1772267533573,-1264.55,0.0001726,2]
[406898426,1772267533583,-609.45,0.0001726,2]
[406898427,1772267533592,-787.95,0.0001726,2]
[406898428,1772267533602,-1665.88,0.0001726,2]
[406898429,1772267533612,-571.43,0.0001726,2]
[406898430,1772267533622,-500.0,0.0001726,2]
[406898431,1772267533631,-7573.22,0.0001726,2]
[406898432,1772267533641,-554.61,0.0001726,2]
[406898433,1772267533651,-500.0,0.0001726,2]
[406898434,1772267533661,-500.0,0.0001726,2]
[406898435,1772267533670,-500.0,0.0001726,2]
[406898436,1772267533680,-1743.64,0.0001726,2]
[406898437,1772267533691,-2006.98,0.0001726,2]
[406898438,1772267533704,-647.16,0.0001726,2]
[406898439,1772267533714,-2108.79,0.0001726,2]
[406898440,1772267533723,-839.36,0.0001726,2]
[406898441,1772267533733,-878.12,0.0001726,2]
[406898442,1772267533742,-7180.71,0.0001726,2]
[406898443,1772267533752,-784.54,0.0001726,2]
[406898444,1772267533762,-696.62,0.0001726,2]
[406898445,1772267533772,-854.66,0.0001726,2]
[406898446,1772267533782,-1726.59,0.0001726,2]
[406898447,1772267533792,-430.66039738,0.0001726,2]
[406898448,1772267533802,-1075.35,0.0001726,2]
[406898449,1772267533813,-5780.22,0.0001726,2]
[406898450,1772267533822,-1052.35,0.0001726,2]
[406898451,1772267533831,-1604.1,0.0001726,2]
[406898452,1772267533841,-617.93,0.0001726,2]
[406898453,1772267533851,-1438.35,0.0001726,2]
[406898454,1772267533861,-1671.97,0.0001726,2]
[406898455,1772267533871,-566.35,0.0001726,2]
[406898456,1772267533881,-695.06,0.0001726,2]
[406898457,1772267533891,-692.56,0.0001726,2]
[406898458,1772267533901,-1703.31,0.0001726,2]
[406898459,1772267533910,-1091.8,0.0001726,2]
[406898460,1772267533920,-526.21,0.0001726,2]
[406898461,1772267533930,-1946.78,0.0001726,2]
[406898462,1772267533940,-1093.05,0.0001726,2]
[406898463,1772267533949,-522.9,0.0001726,2]
[406898464,1772267533959,-1010.99,0.0001726,2]
[406898465,1772267533972,-597.64,0.0001726,2]
[406898466,1772267533992,-632.06,0.0001726,2]
[406898467,1772267534010,-1404.24,0.0001726,2]
[406898468,1772267534030,-3447.77,0.0001726,2]